Cogmind - Beta 9.3 @@@ ROGUE MODE // 2019.12.17 @ 00:36:53 // Winter2019/RPGLIKE Player: moosrose Result: Destroyed by Y-54 Guardian with Flak Gun Performance ------------- Evolutions (3) 1500 Regions Visited (5) 1000 Robots Destroyed (21) 105 Value Destroyed (613) 613 Prototype IDs (0) 0 Alien Tech Used (0) 0 Bonus (-191) -191 TOTAL SCORE: 3027 Bonus ------- Follower Combat Kills 67 Friendly Fire -258 Cogmind --------- Core Integrity 0/600 Matter 152/300 Energy 250/250 System Corruption 0% Temperature Cool (24) Movement Walking (150) Ox1 Location -7/Factory Parts ------- > --- POWER (1) -------- Ion Engine > --- PROPULSION (1) --- Aluminum Leg > --- UTILITY (1) ------ Hardened Medium Armor Plating > --- WEAPON (1) ------- Mini Grenade Launcher > --- INVENTORY (0) ---- (None) Peak State ------------ > --- POWER ------------ Ion Engine > --- PROPULSION ------- Aluminum Leg > --- UTILITY ---------- Hardened Medium Armor Plating > --- WEAPON ----------- Chainsword > --- INVENTORY -------- (None) [Rating: 9] Favorites ----------- Power Ion Engine Engine Ion Engine Propulsion Aluminum Leg Leg Aluminum Leg Utility Hardened Medium Armor Plating Device ECM Suite Storage Large Matter Pod Protection Hardened Medium Armor Plating Weapon Grenade Launcher Ballistic Gun Light Assault Rifle Launcher Grenade Launcher Slashing Weapon Chainsword Build | -11 -10 -10 -9 -8 -7 ------- Run | Scr Mat Min Mat Mat Fac Slots Evolved . | . . . . . . Power . | . . . . . . Propulsion . | . . . . . . Utility . | . . . . . . Weapon . | . . . . . . Parts Attached 11 | 3 4 . 1 3 . Power 2 | 1 . . . 1 . Engine 2 | 1 . . . 1 . Core . | . . . . . . Reactor . | . . . . . . Propulsion 2 | 1 1 . . . . Treads . | . . . . . . Leg 2 | 1 1 . . . . Wheel . | . . . . . . Hover . | . . . . . . Flight . | . . . . . . Utility 3 | . 2 . 1 . . Device 1 | . 1 . . . . Storage 1 | . 1 . . . . Processor . | . . . . . . Hackware . | . . . . . . Protection 1 | . . . 1 . . Artifact . | . . . . . . Weapon 4 | 1 1 . . 2 . Energy Gun . | . . . . . . Energy Cannon . | . . . . . . Ballistic Gun 1 | 1 . . . . . Ballistic Cannon . | . . . . . . Launcher 2 | . 1 . . 1 . Special Weapon . | . . . . . . Impact Weapon . | . . . . . . Slashing Weapon 1 | . . . . 1 . Piercing Weapon . | . . . . . . Special Melee Weapon . | . . . . . . Unidentified Prototypes . | . . . . . . Parts Lost . | . . . . . . Power . | . . . . . . Propulsion . | . . . . . . Utility . | . . . . . . Weapon . | . . . . . . Highest Loss Streak . | . . . . . . Average Slot Usage (%) 99 | . 97 100 100 98 100 Engine 24 | . 25 25 25 23 25 Leg 25 | . 25 25 25 25 25 Device 1 | . 8 . . . . Storage 10 | . 14 25 15 . . Protection 11 | . . . 9 25 25 Ballistic Gun 1 | . 5 . . . . Launcher 22 | . 20 25 25 18 25 Slashing Weapon 1 | . . . . 6 . Naked Turns . | . . . . . . Heaviest Build 16 | 6 11 11 16 16 14 Greatest Support 10 | 10 10 10 10 10 10 Greatest Overweight (x) 2 | . 2 1 1 1 1 Average Overweight (x) . | . . 1 1 1 1 Largest Inventory Capacity . | . . . . . . Average Capacity . | . . . . . . Most Carried . | . . . . . . Average Carried . | . . . . . . Final Capacity . | . . . . . . Final Carried . | . . . . . . Class Distribution -------------------- 100% | Mutant Dominant Class ---------------- Mutant | -10/Materials Mutant | -10/Mines Mutant | -9/Materials Mutant | -8/Materials Mutant | -7/Factory Resources | -11 -10 -10 -9 -8 -7 ----------- Run | Scr Mat Min Mat Mat Fac Matter Collected 575 | 230 191 117 25 12 . Remotely . | . . . . . . Salvage Created 197 | . 114 9 62 12 . Parts 30 | . 7 5 9 9 . Haulers Intercepted . | . . . . . . Recyclers Shooed 3 | . 3 . . . . Parts Field Recycled . | . . . . . . Retrieved Matter . | . . . . . . Parts Self-Destructed . | . . . . . . Prevented . | . . . . . . Kills | -11 -10 -10 -9 -8 -7 ------- Run | Scr Mat Min Mat Mat Fac Combat Hostiles Destroyed 15 | . 4 3 4 4 . AOE 15 | . 4 3 4 4 . Classes Destroyed 7 | . 3 1 1 2 . Worker 1 | . 1 . . . . Builder 1 | . . . . 1 . Tunneler 1 | . . . . 1 . Mechanic 1 | . 1 . . . . Watcher 1 | . . . 1 . . Swarmer 5 | . . 3 2 . . Grunt 10 | . 4 . 2 4 . Thug 1 | . . . 1 . . Best Kill Streak 6 | . 2 3 2 6 . Combat Bots Only 4 | . 2 3 2 4 . Max Kills in Single Turn 3 | . 2 2 2 3 . Gunslinging . | . . . . . . Exploded 2 | . 1 2 1 2 . Melee . | . . . . . . Uniques/NPCs Destroyed . | . . . . . . Combat | -11 -10 -10 -9 -8 -7 -------- Run | Scr Mat Min Mat Mat Fac Damage Taken 752 | . 154 49 131 303 115 Core 606 | . 131 38 104 240 93 Absorbed by Shields . | . . . . . . Redirected to Core 472 | . 78 38 73 223 60 Core Remaining (%) 59 | 100 . 71 54 14 . Volleys Fired 44 | . 17 4 13 7 3 Largest 1 | . 1 1 1 1 1 Hottest 30 | . 30 30 30 30 30 Shots Fired 44 | . 17 4 13 7 3 Gun 4 | . 4 . . . . Cannon . | . . . . . . Launcher 40 | . 13 4 13 7 3 Special . | . . . . . . Kinetic 4 | . 4 . . . . Thermal . | . . . . . . Explosive 40 | . 13 4 13 7 3 Electromagnetic . | . . . . . . Robot Hit Streak 11 | . 8 11 . 3 5 Robot Miss Streak 7 | . 1 . 7 . . Penetration Max . | . . . . . . Secondary Targets . | . . . . . . Shots Hit Robots 21 | . 13 3 . 3 2 Core Hits 46 | . 16 5 10 13 2 Critical Hits . | . . . . . . Critical Kills . | . . . . . . Critical Parts Destroyed . | . . . . . . Melee Attacks . | . . . . . . Impact . | . . . . . . Slashing . | . . . . . . Piercing . | . . . . . . Sneak Attacks . | . . . . . . Combat Hostiles . | . . . . . . Follow-up Attacks . | . . . . . . Damage Inflicted 2301 | . 655 255 596 738 57 Guns 23 | . 23 . . . . Cannons . | . . . . . . Explosions 2276 | . 630 255 596 738 57 Melee . | . . . . . . Ramming 2 | . 2 . . . . Kinetic 23 | . 23 . . . . Thermal 88 | . . . . 88 . Explosive 2188 | . 630 255 596 650 57 Electromagnetic . | . . . . . . Impact . | . . . . . . Slashing . | . . . . . . Piercing . | . . . . . . Highest Corruption . | . . . . . . Average Corruption . | . . . . . . Corruption Purged . | . . . . . . Overload Shots . | . . . . . . Overflow Damage 36 | . 3 5 28 . . Projectiles . | . . . . . . Explosions 36 | . 3 5 28 . . Melee . | . . . . . . Knockbacks . | . . . . . . Impact . | . . . . . . Kinetic . | . . . . . . Secondary . | . . . . . . Self-Inflicted Damage 257 | . 10 . 102 145 . Shots 13 | . 1 . 6 6 . Rammed 1 | . 1 . . . . Targets Rammed 2 | . 1 1 . . . Kicked 1 | . . 1 . . . Crushed . | . . . . . . Highest Temperature 90 | . 4 4 1 90 12 Average Temperature 35 | . 4 4 1 52 12 Received Heat Transfer 240 | . 90 18 6 90 36 Siege Activations . | . . . . . . Robots Corrupted . | . . . . . . Combat Hostiles . | . . . . . . Parts Fried . | . . . . . . Impact Corruptions . | . . . . . . Robots Melted . | . . . . . . Combat Hostiles . | . . . . . . Parts Melted . | . . . . . . Heat Transferred 50 | . . . . 50 . Parts Sabotaged . | . . . . . . Parts Stolen . | . . . . . . Parts Stripped . | . . . . . . Power Chain Reactions . | . . . . . . Missiles Intercepted . | . . . . . . Alert | -11 -10 -10 -9 -8 -7 ------- Run | Scr Mat Min Mat Mat Fac Peak Influence 302 | . 185 199 270 302 178 Average Influence 143 | . 79 153 205 225 139 Maximum Alert Level 1 | . . . 1 1 . Low Security (%) 81 | 100 100 100 40 41 100 Level 1 18 | . . . 59 58 . Level 2 . | . . . . . . Level 3 . | . . . . . . Level 4 . | . . . . . . Level 5 . | . . . . . . High Security . | . . . . . . Max Security . | . . . . . . Squads Dispatched 3 | . . . 2 1 . Investigation 1 | . . . . 1 . Extermination . | . . . . . . Reinforcement 2 | . . . 2 . . Assault . | . . . . . . Garrison . | . . . . . . Intercept . | . . . . . . Construction Impeded . | . . . . . . Haulers Reinforced . | . . . . . . Stealth | -11 -10 -10 -9 -8 -7 --------- Run | Scr Mat Min Mat Mat Fac Distress Signals 2 | . 1 . 1 . . Communications Jammed . | . . . . . . Distress Signals . | . . . . . . Times Spotted 28 | . 8 4 11 4 1 Peak Tracking Total 5 | . 5 3 4 4 1 Tactical Retreats . | . . . . . . Traps | -11 -10 -10 -9 -8 -7 ------- Run | Scr Mat Min Mat Mat Fac Traps Triggered 1 | . . . . 1 . Indirectly . | . . . . . . Trap Hack Attempts . | . . . . . . Triggered . | . . . . . . Disarmed . | . . . . . . Reprogrammed . | . . . . . . Reused . | . . . . . . Traps Extracted . | . . . . . . Installed . | . . . . . . Triggered . | . . . . . . Machines | -11 -10 -10 -9 -8 -7 ---------- Run | Scr Mat Min Mat Mat Fac Machines Disabled 9 | . 2 . 3 3 1 Max in Single Turn 2 | . 1 . 2 2 1 Garrison Access 1 | . . . . . 1 Machines Sabotaged . | . . . . . . Garrisons Compromised . | . . . . . . Overloaded Fab Kills . | . . . . . . Fab Network Shutdowns . | . . . . . . Hacking | -11 -10 -10 -9 -8 -7 --------- Run | Scr Mat Min Mat Mat Fac Machines Accessed 2 | . 1 . . . 1 Terminals . | . . . . . . Fabricators . | . . . . . . Repair Stations . | . . . . . . Recycling Units 1 | . 1 . . . . Scanalyzers . | . . . . . . Garrison Access 1 | . . . . . 1 Total Hacks 3 | . 2 . . . 1 Successful 3 | . 2 . . . 1 Failed . | . . . . . . Catastrophic . | . . . . . . Database Lockouts . | . . . . . . Manual . | . . . . . . Terminals . | . . . . . . Fabricators . | . . . . . . Repair Stations . | . . . . . . Recycling Units 2 | . 2 . . . . Scanalyzers . | . . . . . . Garrison Access 1 | . . . . . 1 Terminal Hacks . | . . . . . . Fabricator Hacks . | . . . . . . Repair Station Hacks . | . . . . . . Recycling Unit Hacks 2 | . 2 . . . . Report Inventory 1 | . 1 . . . . Retrieve Matter 1 | . 1 . . . . Scanalyzer . | . . . . . . Garrison Access Hacks 1 | . . . . . 1 Seal Access 1 | . . . . . 1 Unauthorized Hacks . | . . . . . . Terminals . | . . . . . . Fabricators . | . . . . . . Repair Stations . | . . . . . . Recycling Units . | . . . . . . Scanalyzers . | . . . . . . Garrison Access . | . . . . . . Data Cores Recovered . | . . . . . . Used . | . . . . . . Hacking Detections 1 | . 1 . . . . Full Trace Events . | . . . . . . Feedback Events . | . . . . . . Feedback Blocked . | . . . . . . Robot Schematics Acquired . | . . . . . . Robots Built . | . . . . . . Matter . | . . . . . . Time . | . . . . . . Total Robot Build Rating . | . . . . . . Part Schematics Acquired . | . . . . . . Parts Built . | . . . . . . Matter . | . . . . . . Time . | . . . . . . Total Part Build Rating . | . . . . . . Parts Repaired . | . . . . . . Time . | . . . . . . Parts Recycled . | . . . . . . Recycled Matter . | . . . . . . Retrieved Matter . | . . . . . . Retrieved Components . | . . . . . . Parts Scanalyzed . | . . . . . . Part Schematics Acquired . | . . . . . . Parts Damaged . | . . . . . . Bothacking | -11 -10 -10 -9 -8 -7 ------------ Run | Scr Mat Min Mat Mat Fac Used RIF Installer . | . . . . . . Robots Hacked . | . . . . . . Non-combat . | . . . . . . Combat . | . . . . . . Robot Hacks Applied . | . . . . . . Relay Couplers Released . | . . . . . . Robots Rewired . | . . . . . . Allies Hacked . | . . . . . . Hacks Repelled . | . . . . . . Allies | -11 -10 -10 -9 -8 -7 -------- Run | Scr Mat Min Mat Mat Fac Total Allies 1 | . . 1 . . . Largest Group 1 | . . 1 1 . . Highest-Rated Group 31 | . . 31 31 . . Highest-Rated Ally 31 | . . 31 31 . . Total Orders . | . . . . . . Ally Attacks 9 | . . 6 3 . . Total Damage 108 | . . 86 22 . . Kills 3 | . . 2 1 . . Allies Corrupted . | . . . . . . Allies Melted . | . . . . . . Intel | -11 -10 -10 -9 -8 -7 ------- Run | Scr Mat Min Mat Mat Fac Robot Analysis Total . | . . . . . . Derelict Logs Recovered . | . . . . . . Drone Launches . | . . . . . . Drone Recoveries . | . . . . . . Exploration | -11 -10 -10 -9 -8 -7 ------------- Run | Scr Mat Min Mat Mat Fac Turns Passed 1128 | 80 256 191 174 191 236 Spaces Moved 710 | 68 155 122 98 115 152 Core 8 | 7 1 . . . . Treads . | . . . . . . Legs 702 | 61 154 122 98 115 152 Wheels . | . . . . . . Hover . | . . . . . . Flight . | . . . . . . Fastest Speed 50 | 50 120 150 150 150 150 Average Speed 143 | 112 136 150 150 150 150 Slowest Speed 150 | 120 150 150 150 150 150 Overloaded Moves . | . . . . . . Propulsion Burnouts . | . . . . . . Robots Hopped . | . . . . . . Cave-ins Triggered . | . . . . . . Exploration Rate (%) 19 | 4 32 37 19 18 6 Regions Visited 5 Branch Regions 1 Pre-discovered Areas . | . . . . . . Known Exits Taken . | . . . . . . Unknown Exits Taken 5 | 1 1 1 1 1 . Scrap Searched . | . . . . . . Spaces Dug 4 | . . . 4 . . Terrain Destroyed 201 | . 39 30 63 59 10 Melee . | . . . . . . Projectile . | . . . . . . AOE 201 | . 39 30 63 59 10 Actions | -11 -10 -10 -9 -8 -7 --------- Run | Scr Mat Min Mat Mat Fac Total 774 | 70 182 126 112 127 157 Wait 5 | . 3 . . . 2 Move 706 | 67 154 122 97 114 152 Hop . | . . . . . . Pick Up . | . . . . . . Fast Attach 11 | 3 4 . 1 3 . Attach . | . . . . . . Detach . | . . . . . . Swap . | . . . . . . Drop 7 | . 3 . 1 3 . Fire 44 | . 17 4 13 7 3 Melee . | . . . . . . Ram . | . . . . . . Kick 1 | . 1 . . . . Crush . | . . . . . . Escape Stasis . | . . . . . . Rewire . | . . . . . . Trap . | . . . . . . Miscellaneous . | . . . . . . Route ------- -11/Scrapyard -10/Materials -10/Mines -9/Materials -8/Materials -7/Factory History --------- Turn | Location | Event 8 | -11/Scrapyard | Discovered new exit (range 16) 81 | -11/Scrapyard | Entered Materials 311 | -10/Materials | Build established: Mutant 328 | -10/Materials | Discovered new exit (range 7) 337 | -10/Materials | Entered Mines 340 | -10/Mines | Received a Mining Laser from a helpful Derelict 415 | -10/Mines | Reached level 2 478 | -10/Mines | Assembled infested the area 483 | -10/Mines | Assisted by a Guerilla fighting off Assembled 522 | -10/Mines | Discovered new exit (range 4) 528 | -10/Mines | Entered Materials 528 | -9/Materials | Accompanied by 1 ally 530 | -9/Materials | Reached level 3 690 | -9/Materials | Discovered new exit (range 9) 702 | -9/Materials | Entered another Materials area 704 | -8/Materials | Reached level 4 771 | -8/Materials | Core integrity fell below 50% 778 | -8/Materials | Reached level 5 780 | -8/Materials | Core integrity fell below 20% 889 | -8/Materials | Discovered new exit (range 4) 893 | -8/Materials | Entered Factory 894 | -7/Factory | Core integrity fell below 50% 894 | -7/Factory | Core integrity fell below 20% 895 | -7/Factory | Reached level 6 1129 | -7/Factory | Destroyed by Y-54 Guardian with Flak Gun Last Messages --------------- 00827_ U-05 Engineer lays Concrete. 00829_ K-01 Serf collects debris. 00830_ U-05 Engineer builds a Wall. 00830_ U-05 Engineer lays Concrete. 00863_ Dropped Chainsword. 00864_ Acquired Mni. Grenade Launcher. 00889_ EXIT=FOUND [Achievement: Made in Tau Ceti IV] LOCATION=UNKNOWN GOAL=ESCAPE 00895_ Reached level 6. 00940_ Connecting with Scanalyzer... 00940_ Current location identified: Factory 00988_ Connecting with Garrison Access... >>Seal Access door sealed. 01123_ Manufacturing Mainframe disabled. [Achievement: Remodeling] [Achievement: First Step to Greatness] [Achievement: Just Browsing] Map ----- +----------------------------------------------------+ | ?????????????????????????????????????????????????? | | ?????????????????????????????????????????????????? | | ?????????????????????????????????????????????????? | | ?????????????????????????????????????????????????? | | ?????????????????????????????????????????????????? | | ?????????????????????????????????????????????????? | | ?????????????????????????????????????????????????? | | ?????????????????????????????????????????????????? | | ???????????????????????????????????? ????????????? | | ??????????????????????????????????? ???????????? | | ??????????????????????????????????? ???????????? | | ??????????????????????????????????? ???????????? | | ??????????????????????????????????? "????""?????? | | ??????????????????????????????????? """" ""???""" | | ??????????????????????????????????? """" ""???""" | | ??????????????????????????????????? ???? | | ??????????????????????????????????# ?????? | | ??????????????????????????????????# #???????# | | ???????????????????###########+#### #???????# | | ?????????????????? #???????# | | ?????????????????? #???????+ | | ????????????????? #???????# | | ????????????????? #???????# | | ????????????????? #???????# | | ????????????????????####### #???????# | | ????????????????????# !@ Y ######### | | ????????????????????# | | ????????????????????# "" "" | | ????????????????????# ""S"" """ # """ | | ????????????????????# """" """" # """ " | | ????????????????????# # """ " | | ????????????????????##################+### | | ???????????????????????????????????? # """ " | | ?????????????????????????????????? """ # """ " | | ???????????????????????????????? "Y" # """ " | | ??????????????????????????????"" " " # | | ?????????????????????????????""" ]] # | | ????????????????????????????? ]] # | | ????????????????????????????### #############+#### | | ??????????????????????????????##?????# | | ?????????????????????????????????????# | | ?????????????????????????????????????# | | ?????????????????????????????????????# | | ?????????????????????????????????????# | | ?????????????????????????????????????# | | ?????????????????????????????????????# | | ?????????????????????????????????????# | | ?????????????????????????????????????# | | ?????????????????????????????????????# | | ?????????????????????????????????????############# | +----------------------------------------------------+ Best States ------------- Heat Dissipation 25 Energy Generation 10 Energy Capacity 250 Matter Stores 402 Matter Capacity 450 Sight Range 16 Terrain Scan Density 10 ECM Strength 1 Armor Coverage 225 Evasion (%) 40 Item Schematics ----------------- None Robot Schematics ------------------ None Fabricated ------------ Nothing Alien Tech Used ----------------- None Achievements -------------- Backstab Crack Shot First Step to Greatness Just Browsing Let's See Who's Tougher Made in Tau Ceti IV Remodeling Storm Trooper Uninvited Guest Challenges ------------ None RPGLIKE | -11 -10 -10 -9 -8 -7 --------- Run | Scr Mat Min Mat Mat Fac Levels Raised 5 | . . 1 1 2 1 XP Earned 10957 | 3000 650 1164 2393 2175 1575 Upgrades . | . . . . . . Protomatter Created 69 | . . 7 25 37 . Protomatter Decayed 1 | . . . . 1 . Game ------ Seed DisposablePrecisionBarrier Manual? 0 Play Time 00:20:18 Cumulative 16.8 hours Start 2019.12.17 @ 00:17:22 End 2019.12.17 @ 00:36:53 Sessions 1 Manual Loads 0 Difficulty Rogue Special Mode Winter2019/RPGLIKE Game No. 22 Rogue 22 Adventurer 0 Explorer 0 Win Type - Total 0 Types 0/0/0/0/0/0/0 Lore% 9 Gallery% 26 Achievement% 3 Wizard Run 0 Options --------- ASCII 0 Keyboard 0 Movement Numpad Keybinds 0 Fullscreen 1 Font 18/SmallcapsGlow Map View 112x50 Tactical HUD 1 Map Filters NONE Filters NONE Steam 1 RUN: afc5c3bc-0281-4f6f-a3fc-17c5ffe628d1